Workbook

Sheet MSU
B1: Jyri Toikka | E1: 27.6.1988 Hamina
B2: SUPERPESIS | E2: Runkosarja | I2: Kärkilyönnit (KL), pesänvälit | P2: Ylempi loppusarja | W2: Alempi loppusarja | AD2: Arvo-ottelut | AH2: Mitalit
B3: Vuosi | C3: Sija | D3: Seura | E3: OTT | F3: KUN | G3: LÖI | H3: TOI | I3: KL | J3: 0 > 1 | K3: 1 > 2 | L3: 2 > 3 | M3: 3 > k | N3: KL-% | P3: OTT | Q3: KUN | R3: LÖI | S3: TOI | T3: KL | U3: KL-% | W3: OTT | X3: KUN | Y3: LÖI | Z3: TOI | AA3: KL | AB3: KL-% | AD3: IL | AE3: LL | AF3: hSM | AG3: K | AH3: H | AI3: P
B4: 2004 | C4: 9. | D4: HaPe 2 | F4: suomensarja
B5: 2005
B6: 2006 | C6: 12. | D6: HaPe | F6: ykköspesis
B7: 2007 | C7: 13. | D7: HaPe | F7: ykköspesis
B8: 2008 | C8: 6. | D8: HP | F8: suomensarja
B9: 2009 | C9: 1. | D9: HP | F9: suomensarja
B10: 2010 | C10: 9. | D10: HP | F10: ykköspesis
B11: 2011 | C11: 2. | D11: HP | F11: ykköspesis
B12: 2012 | C12: 8. | D12: HP | F12: ykköspesis
B13: 2013 | C13: 3. | D13: HP | F13: ykköspesis
B14: 2014 | C14: 5. | D14: HP | F14: ykköspesis
B15: 2015 | C15: 5. | D15: HP | F15: ykköspesis
B16: 2017 | C16: 1. | D16: HP | F16: ykköspesis
B17: 2018 | C17: 13. | D17: HP | E17: 28 | F17: 1 | G17: 9 | H17: 13 | I17: 71 | J17: 46 | K17: 3 | L17: 12 | M17: 10 | N17: 55.5 % | O17: 128.0201947 | V17: 0 | W17: 4 | X17: 0 | Y17: 1 | Z17: 2 | AA17: 15 | AB17: 53.6 % | AC17: 28
B18: Yhteensä | E18: =SUM(E4:E17) -> 28 | F18: 1 | G18: 9 | H18: 13 | I18: 71 | J18: 46 | K18: 3 | L18: 12 | M18: 10 | N18: =PRODUCT(I18/O18) -> 55.5 % | O18: =SUM(O17:O17) -> 128.0201947 | P18: =SUM(P4:P17) -> 0 | Q18: =SUM(Q4:Q17) -> 0 | R18: =SUM(R4:R17) -> 0 | S18: =SUM(S4:S17) -> 0 | T18: =SUM(T4:T17) -> 0 | U18: 0.0 % | V18: =SUM(V17:V17) -> 0 | W18: =SUM(W4:W17) -> 4 | X18: =SUM(X4:X17) -> 0 | Y18: =SUM(Y4:Y17) -> 1 | Z18: =SUM(Z4:Z17) -> 2 | AA18: =SUM(AA4:AA17) -> 15 | AB18: 53.6 % | AC18: =SUM(AC17:AC17) -> 28 | AD18: =SUM(AD4:AD17) -> 0 | AE18: 0 | AF18: 0 | AG18: 0 | AH18: 0 | AI18: 0
B19: Pesispörssi | D19: =SUM(F18:H18)+((I18-F18-G18)/3)+(E18/3)+(AD18*25)+(AE18*25)+(AF18*10)+(AG18*25)+(AH18*20)+(AI18*15) -> 52.7
B21: URA SUPERISSA | E21: OTT | F21: KUN | G21: LÖI | H21: TOI | I21: KL | K21: ka/L | L21: ka/T | M21: ka/KL | N21: KL-% | P21: ENSIMMÄISET RUNKOSARJASSA
B22: Runkosarja | E22: =PRODUCT(E18) -> 28 | F22: =PRODUCT(F18) -> 1 | G22: =PRODUCT(G18) -> 9 | H22: =PRODUCT(H18) -> 13 | I22: =PRODUCT(I18) -> 71 | K22: =PRODUCT((F22+G22)/E22) -> 0.36 | L22: =PRODUCT(H22/E22) -> 0.46 | M22: =PRODUCT(I22/E22) -> 2.54 | N22: =PRODUCT(N18) -> 55.5 % | O22: =PRODUCT(O18) -> 128.0201947 | P22: Ottelu | R22: 12.05. 2018 Lippo Pesis - HP 0-2 (2-3, 4-6) | AA22: 1. ottelu | AD22: 29 v 10 kk 15 pv
B23: Ylempi loppusarja | P23: Lyöty | R23: 12.05. 2018 Lippo Pesis - HP 0-2 (2-3, 4-6) | AA23: 1. ottelu | AD23: 29 v 10 kk 15 pv
B24: Alempi loppusarja | E24: =PRODUCT(W18) -> 4 | F24: =PRODUCT(X18) -> 0 | G24: =PRODUCT(Y18) -> 1 | H24: =PRODUCT(Z18) -> 2 | I24: =PRODUCT(AA18) -> 15 | K24: =PRODUCT((F24+G24)/E24) -> 0.25 | L24: =PRODUCT(H24/E24) -> 0.50 | M24: =PRODUCT(I24/E24) -> 3.75 | N24: 53.6 % | O24: 28 | P24: Tuotu | R24: 24.05. 2018 ViVe - HP 2-0 (5-2, 13-12) | AA24: 6. ottelu | AD24: 29 v 10 kk 27 pv
B25: KAIKKI | E25: =SUM(E22:E24) -> 32 | F25: =SUM(F22:F24) -> 1 | G25: =SUM(G22:G24) -> 10 | H25: =SUM(H22:H24) -> 15 | I25: =SUM(I22:I24) -> 86 | K25: =PRODUCT((F25+G25)/E25) -> 0.34 | L25: =PRODUCT(H25/E25) -> 0.47 | M25: =PRODUCT(I25/E25) -> 2.69 | N25: =PRODUCT(I25/O25) -> 55.1 % | O25: =SUM(O22:O24) -> 156.0201947 | P25: Kunnari | R25: 24.05. 2018 ViVe - HP 2-0 (5-2, 13-12) | AA25: 6. ottelu | AD25: 29 v 10 kk 27 pv
B27: Seurat | D27: HP = Haminan Palloilijat (1928), kasvattajaseura
D28: HaPe = Hamina Pesis (2003)

Sheet MYP, MSS
B1: Jyri Toikka | E1: 27.6.1988 Hamina
B2: YKKÖSPESIS | E2: Runkosarja | L2: Runkosarja TOP-10 | Q2: Jatkosarjat | X2: SUOMENSARJA | AA2: Runkosarja | AH2: Runkosarja TOP-10 | AM2: Jatkosarjat
B3: Vuosi | C3: Sija | D3: Seura | E3: OTT | F3: KUN | G3: LÖI | H3: TOI | I3: KL | J3: KL-% | L3: LÖI | M3: TOI | N3: L+T | O3: KL | Q3: OTT | R3: KUN | S3: LÖI | T3: TOI | U3: KL | V3: KL-% | X3: Vuosi | Y3: Sija | Z3: Seura | AA3: OTT | AB3: KUN | AC3: LÖI | AD3: TOI | AE3: KL | AF3: KL-% | AH3: LÖI | AI3: TOI | AJ3: L+T | AK3: KL | AM3: OTT | AN3: KUN | AO3: LÖI | AP3: TOI | AQ3: KL | AR3: KL-%
X4: 2004 | Y4: 9. | Z4: HaPe 2 | AA4: 7 | AB4: 0 | AC4: 2 | AD4: 2 | AE4: 19 | AF4: 51.4 % | AG4: 37
B6: 2006 | C6: 12. | D6: HaPe | E6: 14 | F6: 1 | G6: 1 | H6: 6 | I6: 29 | J6: 45.3 % | K6: 64 | Q6: 3 | R6: 0 | S6: 0 | T6: 1 | U6: 5 | V6: 25.0 % | W6: 20
B7: 2007 | C7: 13. | D7: HaPe | E7: 20 | F7: 4 | G7: 4 | H7: 18 | I7: 75 | J7: 53.2 % | K7: 141 | Q7: 2 | R7: 0 | S7: 0 | T7: 6 | U7: 9 | V7: 60.0 % | W7: 15
X8: 2008 | Y8: 6. | Z8: HP | AA8: 10 | AB8: 3 | AC8: 2 | AD8: 12 | AE8: 59 | AF8: 60.2 % | AG8: 98
X9: 2009 | Y9: 1. | Z9: HP | AA9: 18 | AB9: 0 | AC9: 11 | AD9: 33 | AE9: 73 | AF9: 64.6 % | AG9: 113 | AI9: 5. | AM9: 7 | AN9: 0 | AO9: 0 | AP9: 7 | AQ9: 33 | AR9: 64.7 % | AS9: 51
B10: 2010 | C10: 9. | D10: HP | E10: 20 | F10: 1 | G10: 0 | H10: 21 | I10: 72 | J10: 57.1 % | K10: 126
B11: 2011 | C11: 2. | D11: HP | E11: 18 | F11: 0 | G11: 3 | H11: 19 | I11: 35 | J11: 49.3 % | K11: 71 | Q11: 7 | R11: 0 | S11: 0 | T11: 2 | U11: 20 | V11: 62.5 % | W11: 32
B12: 2012 | C12: 8. | D12: HP | E12: 22 | F12: 1 | G12: 2 | H12: 26 | I12: 79 | J12: 56.4 % | K12: 140
B13: 2013 | C13: 3. | D13: HP | E13: 22 | F13: 2 | G13: 1 | H13: 30 | I13: 87 | J13: 53.7 % | K13: 162 | M13: 7. | Q13: 3 | R13: 0 | S13: 0 | T13: 1 | U13: 10 | V13: 45.5 % | W13: 22
B14: 2014 | C14: 5. | D14: HP | E14: 22 | F14: 3 | G14: 0 | H14: 30 | I14: 99 | J14: 57.2 % | K14: 173 | M14: 10.
B15: 2015 | C15: 5. | D15: HP | E15: 24 | F15: 1 | G15: 1 | H15: 18 | I15: 98 | J15: 54.7 % | K15: 179 | Q15: 3 | R15: 0 | S15: 0 | T15: 0 | U15: 9 | V15: 42.9 % | W15: 21
B17: 2017 | C17: 1. | D17: HP | E17: 1 | F17: 0 | G17: 0 | H17: 0 | I17: 0 | J17: 0.0 % | K17: 3
B18: YHTEENSÄ | E18: =SUM(E4:E17) -> 163 | F18: =SUM(F4:F17) -> 13 | G18: =SUM(G4:G17) -> 12 | H18: =SUM(H4:H17) -> 168 | I18: =SUM(I4:I17) -> 574 | J18: =PRODUCT(I18/K18) -> 54.2 % | K18: =SUM(K4:K17) -> 1059 | Q18: =SUM(Q4:Q17) -> 18 | R18: =SUM(R4:R17) -> 0 | S18: =SUM(S4:S17) -> 0 | T18: =SUM(T4:T17) -> 10 | U18: =SUM(U4:U17) -> 53 | V18: =PRODUCT(U18/W18) -> 48.2 % | W18: =SUM(W4:W17) -> 110 | X18: YHTEENSÄ | AA18: =SUM(AA4:AA17) -> 35 | AB18: =SUM(AB4:AB17) -> 3 | AC18: =SUM(AC4:AC17) -> 15 | AD18: =SUM(AD4:AD17) -> 47 | AE18: =SUM(AE4:AE17) -> 151 | AF18: =PRODUCT(AE18/AG18) -> 60.9 % | AG18: =SUM(AG4:AG17) -> 248 | AM18: =SUM(AM4:AM17) -> 7 | AN18: =SUM(AN4:AN17) -> 0 | AO18: =SUM(AO4:AO17) -> 0 | AP18: =SUM(AP4:AP17) -> 7 | AQ18: =SUM(AQ4:AQ17) -> 33 | AR18: =PRODUCT(AQ18/AS18) -> 64.7 % | AS18: =SUM(AS4:AS17) -> 51
B20: KAIKKI OTTELUT | E20: OTT | F20: KUN | G20: LÖI | H20: TOI | I20: KL | J20: KL-% | L20: ka/L | M20: ka/T | N20: ka/l+t | O20: ka/kl | R20: Seurat | T20: HP = Haminan Palloilijat (1928), kasvattajaseura
B21: SUPERPESIS | E21: 32 | F21: 1 | G21: 10 | H21: 15 | I21: 86 | J21: 55.1 % | K21: =PRODUCT(I21/J21) -> 156.0798548 | L21: 0.00 | M21: 0.00 | N21: 0.00 | O21: 0.00 | T21: HaPe = Hamina Pesis (2003)
B22: YKKÖSPESIS | E22: =PRODUCT(E18+Q18) -> 181 | F22: =PRODUCT(F18+R18) -> 13 | G22: =PRODUCT(G18+S18) -> 12 | H22: =PRODUCT(H18+T18) -> 178 | I22: =PRODUCT(I18+U18) -> 627 | J22: 0.0 % | K22: =PRODUCT(K18+W18) -> 1169 | L22: 0.00 | M22: 0.00 | N22: 0.00 | O22: 0.00
B23: SUOMENSARJA | E23: =PRODUCT(AA18+AM18) -> 42 | F23: =PRODUCT(AB18+AN18) -> 3 | G23: =PRODUCT(AC18+AO18) -> 15 | H23: =PRODUCT(AD18+AP18) -> 54 | I23: =PRODUCT(AE18+AQ18) -> 184 | J23: =PRODUCT(I23/K23) -> 61.5 % | K23: =PRODUCT(AG18+AS18) -> 299 | L23: =PRODUCT((F23+G23)/E23) -> 0.43 | M23: =PRODUCT(H23/E23) -> 1.29 | N23: =PRODUCT((F23+G23+H23)/E23) -> 1.71 | O23: =PRODUCT(I23/E23) -> 4.38
B24: YHTEENSÄ | E24: =SUM(E21:E23) -> 255 | F24: =SUM(F21:F23) -> 17 | G24: 37 | H24: 247 | I24: 897 | J24: =PRODUCT(I24/K24) -> 55.2 % | K24: =SUM(K21:K23) -> 1624.079855 | L24: =PRODUCT((F24+G24)/E24) -> 0.21 | M24: =PRODUCT(H24/E24) -> 0.97 | N24: =PRODUCT((F24+G24+H24)/E24) -> 1.18 | O24: =PRODUCT(I24/E24) -> 3.52

Sheet Arvo-ottelut
B1: ITÄ - LÄNSI - KORTTI
B2: Jyri Toikka | C2: 27.6.1988 Hamina
B3: A - POJAT | C3: Itä - Länsi, tulos | D3: Joukkue | E3: Seura | G3: V | H3: T | I3: H | J3: Up. | K3: Lj. | L3: Palk. | M3: O | N3: K | O3: L | P3: T | Q3: KL | R3: 1 | S3: 2 | T3: 3 | U3: k | V3: KL-% | W3: Pelinjohtaja | X3: Yleisöä
B4: 27.06. 2008 Raahe | C4: 2-1 (0-3, 3-2, 1-1, 3-2) | D4: Itä | E4: HP | G4: 1 | K4: jok | M4: 1 | Q4: 1/3 | R4: 1/3 | V4: 33.3 % | W4: Vesa Toikka | X4: 2147
B5: 26.06. 2009 Kuopio | C5: 1-0 (3-2, 3-3) | D5: Itä | E5: HP | G5: 1 | J5: 2k | K5: 9 | M5: 1 | P5: 1 | Q5: 0/2 | S5: 0/2 | V5: 0.0 % | W5: Petri Pulliainen | X5: 2136
B6: Yhteensä | G6: 2 | M6: =SUM(M4:M5) -> 2 | P6: 1 | Q6: 1/5 | R6: 1/3 | S6: 0/2 | V6: 20.0 %
